[Event "BL 2024-25"]
[Site "Austria"]
[Date "2024.10.11"]
[Round "3.6"]
[White "Gruenwald, Simon"]
[Black "Baidetskyi, Valentin"]
[Result "0-1"]
[Annotator "TA"]
[ECO "B15"]
[WhiteElo "2143"]
[BlackElo "2505"]
[PlyCount "144"]
[EventDate "2024.08.28"]
[EventType "team-tourn"]
[EventCountry "AUT"]
[SourceTitle "playchess.com"]
[Source "ChessBase"]
[SourceQuality "1"]
[WhiteTeam "Frauental"]
[BlackTeam "Pinggau-Friedberg"]
[TimeControl "40/5400+30:1800+30"]

{[%evp 36,144,0,-17,0,-15,-12,-44,-51,-45,-45,-48,-22,-75,-74,-81,-81,-157,-157,-157,-153,-148,-132,-183,-64,-64,-64,-64,-64,-64,-64,-64,-64,-64,-64,-64,-64,-64,-64,-85,-85,-88,-88,-88,-85,-85,-85,-85,-85,-85,-85,-85,-71,-103,-71,-79,-79,-79,-79,-103,-103,-121,-121,-221,-221,-221,-221,-221,-221,-221,-221,-12411,-221,-10872,-221,-987,-221,-221,-121,-121,-121,-121,0,0,0,-3,0,0,0,-66,-14,-66,-65,-65,0,0,0,0,0,0,0,0,0,0,0,-60,-81,-29983,-29984,-29984,-29985]} 1. e4 {[%emt 0:00:02]} c6 {[%emt 0:00:15]} 2. d4 {[%emt 0:00:02]} d5 {[%emt 0:00:06]} 3. Nc3 {[%emt 0:00:02]} dxe4 {[%emt 0:00:07]} 4. Nxe4 {[%emt 0:00:02]} Nf6 {[%emt 0:00:10]} 5. Nxf6+ {[%emt 0:00:06]} exf6 {[%emt 0:00:05]} 6. c3 {[%emt 0:00:06]} Bd6 {[%emt 0:00:08]} 7. Bd3 {[%emt 0:00:02]} O-O {[%emt 0:01:31]} 8. Qc2 {[%emt 0:00:01]} h6 {[%emt 0:04:15]} 9. Ne2 {[%emt 0:01:43]} Re8 {[%emt 0:01:37]} 10. O-O {[%emt 0:02:40] The main line 10.0-0 scores better than 10.Be3.} Nd7 {[%emt 0:07:59] B15: Caro-Kann: 3 Nc3: 3...g6 and 3...dxe4 4 Nxe4 Nf6 5 Nxf6+ exf6.} 11. Bf4 {[%emt 0:04:17]} Nb6 {[%emt 0:01:31]} 12. Bxd6 {[%emt 0:02:08]} Qxd6 {[%emt 0:00:02]} 13. Rae1 $146 {[%emt 0:04:34]} ({Predecessor:} 13. Ng3 Be6 14. Rfe1 Re7 15. Re2 Rae8 16. Rae1 Qd7 17. h3 Bc4 18. Rxe7 Rxe7 19. Be4 Bd5 20. b3 g6 21. Re2 f5 22. Bd3 Rxe2 23. Qxe2 Be6 24. Qe5 Kh7 25. Ne2 {½-½ Orschiedt,O (2102)-Wittal,W (1888) DESC E7Kl017 corr 2001}) 13... Be6 {[%emt 0:06:15]} 14. Ng3 {[%emt 0:03:35]} Nd7 {[%emt 0:00:14]} 15. Re3 {[%emt 0:17:32]} c5 {[%emt 0:07:13]} 16. Ne4 {[%emt 0:07:57]} Qb6 {[%emt 0:00:10]} 17. dxc5 {[%emt 0:03:38]} Nxc5 {[%emt 0:00:02]} 18. Nxc5 {[%emt 0:00:19]} Qxc5 {[%emt 0:00:02]} 19. Qa4 {[%emt 0:14:31]} Red8 {[%emt 0:04:12]} 20. Rfe1 {[%emt 0:07:32]} Rd5 {[%emt 0:08:43]} 21. Qb4 {[%emt 0:14:40]} (21. Bc4 {keeps more tension.} b5 22. Bxd5 bxa4 23. Bxa8 Bxa2 24. Ra1) 21... Qxb4 {[%emt 0:00:33]} 22. cxb4 {[%emt 0:02:26]} Rd4 {[%emt 0:00:04]} 23. a3 {[%emt 0:14:05]} Rad8 {[%emt 0:00:42]} 24. Bf1 {[%emt 0:00:00]} (24. Bc2 $11) 24... Rd2 $17 {[%emt 0:00:17]} 25. R3e2 {[%emt 0:00:00] [#]} Rxe2 $1 {[%emt 0:00:32]} 26. Rxe2 {[%emt 0:00:00]} ({White should play} 26. Bxe2 Rd2 27. Bf3) 26... Rd1 $17 {[%emt 0:00:08]} 27. f4 {[%emt 0:00:00] [#]} Bc4 $1 {[%emt 0:00:07]} 28. Rf2 {[%emt 0:00:00]} Rb1 {[%emt 0:00:09]} 29. g3 {[%emt 0:00:00]} (29. f5 $17 {was necessary.}) 29... h5 {[%emt 0:00:58]} (29... Kh7 $19 {Strongly threatening ...Kg6.} 30. Kg2 Bxf1+ 31. Rxf1 Rxb2+ 32. Kh1 Rb3) 30. Kg2 $1 $15 {[%emt 0:00:00]} Bxf1+ {[%emt 0:00:08]} 31. Rxf1 {[%emt 0:00:00]} Rxb2+ {[%emt 0:00:02]} 32. Rf2 {[%emt 0:00:04]} Rb1 {[%emt 0:21:17]} 33. Rc2 {[%emt 0:04:21]} g6 {[%emt 0:05:50]} 34. Rc7 {[%emt 0:00:22]} Rb2+ {[%emt 0:00:11]} 35. Kg1 {[%emt 0:00:36]} Rb3 {[%emt 0:00:10]} 36. Rxb7 {[%emt 0:00:05]} Rxa3 {[%emt 0:00:03]} 37. b5 {[%emt 0:00:44]} Kg7 {[%emt 0:00:52]} 38. b6 {[%emt 0:00:01]} axb6 {[%emt 0:00:17]} 39. Rxb6 {[%emt 0:00:02]} g5 {[%emt 0:02:14]} 40. fxg5 {[%emt 0:01:31]} fxg5 {[%emt 0:00:02]} 41. Rb2 {[%emt 0:02:24]} Kg6 {[%emt 0:04:14]} 42. Kg2 {[%emt 0:02:36]} Ra4 {[%emt 0:00:53]} 43. Rc2 {[%emt 0:07:41]} h4 {[%emt 0:04:44]} 44. Rb2 {[%emt 0:12:01]} f6 {[%emt 0:00:37]} 45. gxh4 {[%emt 0:05:43]} Rxh4 {[%emt 0:00:08]} 46. Kg3 {[%emt 0:01:11]} Re4 {[%emt 0:00:19]} 47. Rb3 {[%emt 0:01:56]} f5 {[%emt 0:00:43]} 48. Rb6+ {[%emt 0:00:39]} Kh5 {[%emt 0:00:02]} 49. Rb8 {[%emt 0:00:31]} (49. Kf3 $17 {was worth a try.}) 49... Re3+ {[%emt 0:00:08]} 50. Kg2 {[%emt 0:00:30]} Kg4 {[%emt 0:00:46]} 51. Rb2 {[%emt 0:00:31]} Ra3 {[%emt 0:00:25]} 52. Rc2 {[%emt 0:00:25]} f4 {[%emt 0:00:02]} 53. Rb2 $2 {[%emt 0:00:18]} (53. Rc4) 53... Kh4 $2 {[%emt 0:00:21]} (53... f3+ 54. Kf2 Kh3) 54. Rc2 $2 {[%emt 0:00:46]} (54. Rb4) 54... Re3 $2 {[%emt 0:04:34]} (54... f3+ 55. Kg1 Kh3) 55. Rf2 $2 {[%emt 0:00:31]} (55. Rb2) 55... Re5 $2 {[%emt 0:01:05]} (55... Rb3 56. Rd2 f3+ 57. Kf1 Kh3) 56. Ra2 {[%emt 0:00:22]} g4 {[%emt 0:01:28]} (56... Rb5 $19 57. Ra6 Rb2+ 58. Kg1 Kg4) 57. Ra8 $17 {[%emt 0:00:31]} Re2+ {[%emt 0:00:33]} 58. Kg1 {[%emt 0:00:19]} f3 {[%emt 0:01:13]} (58... Kg5 $17 {And now ...Kf5 would win.} 59. Rf8 Rc2) 59. Rg8 $11 {[%emt 0:00:23]} Ra2 {[%emt 0:06:00]} 60. Rg7 {[%emt 0:00:17]} Ra1+ {[%emt 0:03:16]} 61. Kf2 {[%emt 0:00:07]} Ra2+ {[%emt 0:02:45]} (61... Ra5 $11) 62. Kg1 $15 {[%emt 0:00:01]} Ra8 {[%emt 0:00:08]} ({Much weaker is} 62... Rg2+ 63. Kh1 $11) (62... Ra5 $1 $15) 63. Rg6 {[%emt 0:01:45]} ({Better is} 63. Rh7+ $11 Kg5 64. Kf2) 63... Ra1+ {[%emt 0:01:19]} 64. Kf2 {[%emt 0:00:04]} Rh1 {[%emt 0:00:11]} (64... Ra2+ $15 65. Kg1 Rg2+ 66. Kh1 Rc2) 65. Rh6+ $11 {[%emt 0:00:30]} Kg5 {[%emt 0:00:01]} 66. Rh8 {[%emt 0:00:15]} Ra1 {[%emt 0:00:08]} 67. Rg8+ {[%emt 0:00:59]} Kf5 {[%emt 0:00:01]} 68. Rf8+ {[%emt 0:00:34]} Ke6 {[%emt 0:00:01]} 69. h3 {[%emt 0:00:52]} Ra2+ {[%emt 0:02:08]} 70. Kf1 {[%emt 0:00:01]} (70. Kg1 $11) 70... gxh3 {[%emt 0:00:43]} 71. Rxf3 $2 {[%emt 0:00:01][%mdl 8192]} (71. Kg1 $17) 71... Ra1+ {[%emt 0:00:08]} 72. Kf2 {[%emt 0:01:24]} h2 {[%emt 0:00:01]} 0-1

[Event "BL 2024-25"]
[Site "Austria"]
[Date "2024.10.11"]
[Round "3.7"]
[White "Nisipeanu, Liviu-Dieter"]
[Black "Deuer, Marius"]
[Result "1-0"]
[Annotator "TA"]
[ECO "B12"]
[WhiteElo "2584"]
[BlackElo "2477"]
[PlyCount "33"]
[EventDate "2024.08.28"]
[EventType "team-tourn"]
[EventCountry "AUT"]
[SourceTitle "playchess.com"]
[Source "ChessBase"]
[SourceQuality "1"]
[WhiteTeam "Mayrhofen-Zell-Ziller"]
[BlackTeam "Salzburg"]
[TimeControl "40/5400+30:1800+30"]

{[%evp 9,33,7,2,8,9,10,16,6,8,13,10,12,78,73,98,98,99,114,87,32,112,80,431,388,388,404]} 1. e4 {[%emt 0:00:04]} c6 {[%emt 0:00:05]} 2. d4 {[%emt 0:00:06]} d5 {[%emt 0:00:04]} 3. e5 {[%emt 0:00:04]} Bf5 {[%emt 0:00:04]} 4. h4 {[%emt 0:00:04]} h5 {[%emt 0:00:04]} 5. Bd3 {[%emt 0:00:04]} Bxd3 {[%emt 0:00:05]} 6. Qxd3 {[%emt 0:00:04][%cal Oe5e6]} Qa5+ {[%emt 0:00:06]} 7. c3 {[%emt 0:00:06][%cal Oe5e6] Threatens to win with e6!} e6 {[%emt 0:08:59]} 8. a4 {[%emt 0:00:48] The position is equal.} Qc7 {[%emt 0:12:05]} 9. Nf3 {[%emt 0:02:23]} c5 {[%emt 0:02:22]} 10. O-O {[%emt 0:02:37]} Nd7 {[%emt 0:12:31]} (10... a6 $11 {remains equal.}) 11. c4 $16 {[%emt 0:17:47]} Ne7 {[%emt 0:13:50]} 12. Nc3 {[%emt 0:01:09] Black must now prevent Nb5.} dxc4 {[%emt 0:01:16]} 13. Qxc4 {[%emt 0:00:26]} a6 {[%emt 0:03:34] Prevents Nb5} 14. Bg5 {[%emt 0:05:43]} (14. a5 $16) 14... Rc8 {[%emt 0:03:54]} ({Black should try} 14... Nc6 $14) 15. Rac1 {[%emt 0:01:54] Hoping for Rfd1. White is much more active.} cxd4 $2 {[%emt 0:01:55][%mdl 8192]} (15... Nc6 $16) 16. Qxc7 {[%emt 0:02:56]} ({Not} 16. Qxd4 Nc6 17. Qe3 Bc5 $16) 16... Rxc7 {[%emt 0:00:08] [#]} 17. Nb5 $1 {[%emt 0:00:03][%mdl 512] Weighted Error Value: White=0.18 (very precise) /Black=0.68.  Loses game:     	---       	Black=1      Mistake:       	White=1     	Black=2      OK:         	White=4     	Black=2      Brilliant:      	White=1     	---} 1-0

[Event "BL 2024-25"]
[Site "Austria"]
[Date "2024.10.11"]
[Round "3.8"]
[White "Rosner, Jonas"]
[Black "Vogel, Roven"]
[Result "1-0"]
[Annotator "TA"]
[ECO "E07"]
[WhiteElo "2434"]
[BlackElo "2559"]
[PlyCount "91"]
[EventDate "2024.08.28"]
[EventType "team-tourn"]
[EventCountry "AUT"]
[SourceTitle "playchess.com"]
[Source "ChessBase"]
[SourceQuality "1"]
[WhiteTeam "Salzburg"]
[BlackTeam "Mayrhofen-Zell-Ziller"]
[TimeControl "40/5400+30:1800+30"]

{[%evp 15,91,25,27,23,15,5,7,6,0,0,0,8,20,19,41,47,35,45,56,27,12,20,39,44,58,62,73,85,86,67,60,42,104,100,126,85,130,127,135,129,201,108,103,62,118,119,299,260,298,290,344,316,344,252,400,393,386,400,490,490,675,388,393,379,648,636,651,634,602,533,712,620,29984,29985,29987,29988,29993,29994]} 1. d4 {[%emt 0:00:03]} Nf6 {[%emt 0:00:10]} 2. c4 {[%emt 0:00:08]} e6 {[%emt 0:00:08]} 3. g3 {[%emt 0:00:20]} d5 {[%emt 0:00:09]} 4. Nf3 {[%emt 0:00:18]} Be7 {[%emt 0:00:09]} 5. Bg2 {[%emt 0:00:30]} O-O {[%emt 0:00:10]} 6. O-O {[%emt 0:00:33]} c6 {[%emt 0:00:08]} 7. b3 {[%emt 0:00:57]} b6 {[%emt 0:00:29]} 8. Bb2 {[%emt 0:00:25]} Nbd7 {[%emt 0:02:35]} 9. Qd3 {[%emt 0:01:46]} a5 {[%emt 0:04:30]} 10. a4 {[%emt 0:10:19]} Ba6 {[%emt 0:01:37]} 11. Nbd2 {[%emt 0:01:22] The position is equal.} c5 {[%emt 0:21:01]} 12. Rfd1 {[%emt 0:04:55]} Rc8 {[%emt 0:03:52]} 13. Rac1 {[%emt 0:01:08]} cxd4 {[%emt 0:03:33]} 14. Nxd4 {[%emt 0:02:44]} Bc5 {[%emt 0:03:31]} 15. e3 {[%emt 0:11:03]} Qe7 {[%emt 0:05:24]} 16. Qb1 {[%emt 0:01:58]} Bb7 {[%emt 0:04:14]} 17. Qa1 {[%emt 0:05:19]} Rfd8 {[%emt 0:11:35]} 18. Nb5 {[%emt 0:02:45]} Bb4 {[%emt 0:04:49]} 19. cxd5 {[%emt 0:13:13]} exd5 {[%emt 0:00:10]} 20. Nf3 {[%emt 0:02:38]} Ne8 {[%emt 0:06:56]} 21. Nfd4 {[%emt 0:03:32]} Rxc1 {[%emt 0:06:46]} 22. Rxc1 {[%emt 0:01:14]} Nc5 {[%emt 0:00:08]} 23. Rd1 {[%emt 0:04:16] Wards off Nd3} f6 {[%emt 0:01:15]} (23... g6 $14) 24. Qb1 $16 {[%emt 0:02:29]} Ne6 {[%emt 0:02:24]} 25. h4 {[%emt 0:10:15]} Nxd4 {[%emt 0:01:54]} 26. Bxd4 {[%emt 0:02:30]} Bc5 {[%emt 0:00:26]} 27. Qf5 {[%emt 0:02:24]} Qf7 {[%emt 0:03:22]} (27... g6 $16 28. Qd3 g5) 28. Nc3 {[%emt 0:15:26]} (28. Bxc5 $18 bxc5 29. Qc2) 28... Nc7 {[%emt 0:06:43][%cal Be8c7,Bc7a6,Ba6b4,Bb4d5][%mdl 32]} 29. Kh2 {[%emt 0:00:00]} Bc8 {[%emt 0:01:31]} (29... Qg6 $14 30. Qf3 Qc2) 30. Qc2 {[%emt 0:00:00] White is much more active.} f5 $2 {[%emt 0:03:01] [#] Black cannot hold the game after this.} (30... Bg4 $16) 31. Bxc5 $18 {[%emt 0:00:00]} bxc5 {[%emt 0:00:01]} 32. Ne2 {[%emt 0:00:00][%cal Bc3e2,Be2f4,Bf4e6,Be6c5,Bc5d3,Bd3e5][%mdl 32]} Na6 {[%emt 0:01:07]} 33. Qc3 {[%emt 0:00:00]} Bb7 {[%emt 0:01:18]} 34. Qxa5 {[%emt 0:00:00]} Qe7 {[%emt 0:00:25]} (34... Qc7 $142 35. Qxc7 Nxc7) 35. Nf4 {[%emt 0:00:00]} Nb4 {[%emt 0:00:06]} 36. Qb6 {[%emt 0:00:00]} Ba8 {[%emt 0:01:03]} 37. Rc1 {[%emt 0:01:01]} d4 {[%emt 0:01:40]} 38. Ne6 {[%emt 0:01:18]} Re8 {[%emt 0:00:33]} 39. Bxa8 {[%emt 0:00:52]} (39. Nxc5 Nd5 40. Qa6 (40. Bxd5+ Bxd5 41. Re1 Rc8 $18) 40... dxe3 $18) (39. Qxc5 Bxg2 40. Qxe7 Rxe7 $18) 39... Rxa8 $2 {[%emt 0:00:18] [#]} (39... Qxe6 40. Qxe6+ (40. Qxc5 Rxa8 41. Qxb4 dxe3 $18) 40... Rxe6 41. exd4 (41. Rxc5 dxe3 42. fxe3 Rxe3 $18) 41... cxd4) 40. Nxc5 {[%emt 0:01:19]} Nd5 {[%emt 0:00:45]} 41. Qc6 {[%emt 0:03:38]} Rd8 {[%emt 0:00:48]} 42. exd4 {[%emt 0:01:40]} Kf7 {[%emt 0:00:33]} 43. Nd3 {[%emt 0:02:32]} Qe2 {[%emt 0:01:22]} 44. Ne5+ {[%emt 0:00:29] White mates.} Kf8 {[%emt 0:00:05]} 45. Qe6 {[%emt 0:02:52][%csl Ge5][%cal Re6f7]} Qxf2+ {[%emt 0:00:07]} 46. Kh1 {[%emt 0:00:14] Weighted Error Value: White=0.24 (precise) /Black=0.57.  Loses game:     	---       	Black=1      Mistake:       	White=1     	Black=5      Inaccurate:     	White=4     	Black=3      OK:         	White=16    	Black=7      Best:        	White=1     	---} 1-0

[Event "BL 2024-25"]
[Site "Austria"]
[Date "2024.10.11"]
[Round "3.9"]
[White "Votava, Jan"]
[Black "Hacker, Jonas"]
[Result "1-0"]
[Annotator "TA"]
[ECO "E15"]
[WhiteElo "2441"]
[BlackElo "2385"]
[PlyCount "127"]
[EventDate "2024.08.28"]
[EventType "team-tourn"]
[EventCountry "AUT"]
[SourceTitle "playchess.com"]
[Source "ChessBase"]
[SourceQuality "1"]
[WhiteTeam "Mayrhofen-Zell-Ziller"]
[BlackTeam "Salzburg"]
[TimeControl "40/5400+30:1800+30"]

{[%evp 23,127,11,52,20,15,-14,0,-13,-9,-66,-2,-21,-31,-13,40,-43,-15,-25,0,-24,-33,-103,-86,-107,-108,-96,-89,-107,-87,-97,0,0,0,0,99,85,127,115,124,109,94,96,101,83,127,0,31,1,0,0,0,0,0,0,0,0,0,0,0,0,0,0,0,0,2,0,118,129,131,105,167,136,164,144,234,222,254,160,213,214,231,258,413,400,377,368,571,587,758,749,760,489,530,480,526,530,29974,29975,29995,29996,29996,29996,29997,29997,29997,29998]} 1. d4 {[%emt 0:00:05]} Nf6 {[%emt 0:00:12]} 2. c4 {[%emt 0:00:12]} e6 {[%emt 0:00:09]} 3. Nf3 {[%emt 0:00:05]} b6 {[%emt 0:00:23]} 4. g3 {[%emt 0:00:22]} Ba6 {[%emt 0:00:19]} 5. Qa4 {[%emt 0:07:38]} Bb7 {[%emt 0:01:50]} 6. Bg2 {[%emt 0:00:42]} c5 {[%emt 0:01:32]} 7. O-O {[%emt 0:01:11]} cxd4 {[%emt 0:07:12]} 8. Nxd4 {[%emt 0:00:43]} Bxg2 {[%emt 0:02:41]} 9. Kxg2 {[%emt 0:00:02]} Qc8 {[%emt 0:12:33]} 10. Nc3 {[%emt 0:01:25]} Qb7+ {[%emt 0:04:13]} 11. f3 {[%emt 0:03:08]} Be7 {[%emt 0:07:18]} 12. Rd1 {[%emt 0:16:20]} a6 {[%emt 0:01:53]} 13. Be3 {[%emt 0:15:23] E15: Dame-Indisch: 4 g3 Zijvarianten, 4 g3 La6 en 4 g3 Lb7 vroege afwijkingen.} O-O {[%emt 0:03:55] Beste} 14. Qb3 {[%emt 0:04:00] OK} d6 $1 {[%emt 0:09:05] Sterk} 15. a4 {[%emt 0:01:31] OK. De stelling is in evenwicht.} Nbd7 {[%emt 0:02:13] OK} 16. Bg1 $146 {[%emt 0:11:37] Fout (0.6)} (16. Qa2 $11) ({Predecessor:} 16. Rac1 Rfc8 17. Qa2 Rc5 18. b3 d5 19. cxd5 Rxc3 20. Rxc3 Nxd5 21. Qb2 Nxc3 22. Qxc3 {½-½ Dutra,A (2406)-Korogodski,L (2285) W-Cup21 sf04 email 2017}) {Beter is} 16... Qc7 {[%emt 0:04:40] Fout (0.6)} (16... Rfc8 $15) 17. Rac1 $11 {[%emt 0:05:20] OK} Rfc8 {[%emt 0:01:59][%cal Rc7c4]} 18. Nb1 {[%emt 0:03:43] OK} Bf8 {[%emt 0:04:45] Fout (0.5)} (18... Ne5 $11) 19. Qa2 {[%emt 0:03:23] Fout (0.8)} (19. e4 $14) 19... Qb7 {[%emt 0:05:56] Onnauwkeurig} 20. Nc3 {[%emt 0:03:10] OK} g6 {[%emt 0:02:56]} 21. Nc2 {[%emt 0:10:52]} Rc7 {[%emt 0:07:49][%cal Ob6b5] Hoopt vervolgens op ...b5! OK} 22. Ne3 {[%emt 0:02:11] [#] Fout (0.7)} (22. Na3 $15) 22... b5 $1 $17 {[%emt 0:05:27][%mdl 512] OK} 23. a5 {[%emt 0:04:35] OK} Ne5 {[%emt 0:06:43] OK} 24. cxb5 {[%emt 0:01:16] OK} axb5 {[%emt 0:00:25] ...b4 is de sterke dreiging.} 25. b4 {[%emt 0:03:02] Beste} d5 {[%emt 0:02:31][%cal Oc7d7] OK} 26. Qb2 {[%emt 0:00:02][%cal Oc3d5] Sterke dreiging met Ncxd5!} {Zwart zou moeten spelen} Nc4 {[%emt 0:01:14] Fout (1.0)} (26... Nfd7 $17) 27. Nxc4 $11 {[%emt 0:00:46] Beste (Gemakkelijk)} bxc4 {[%emt 0:01:06]} 28. Na4 {[%emt 0:01:08]} Qxb4 {[%emt 0:02:46] blijft gelijk. Fout (1.0)} (28... Nd7 $1 $11) 29. Qxf6 $16 {[%emt 0:00:32] Beste (Gemakkelijk)} Bg7 {[%emt 0:00:36] Stopt Bd4. Onnauwkeurig} ({En niet} 29... Qxa4 30. Bd4 e5 31. Bxe5 Rxa5 32. Qh8#) 30. Qf4 {[%emt 0:00:17] OK} e5 {[%emt 0:00:23] Beste} 31. Qd2 {[%emt 0:00:27] OK} Qxa4 {[%emt 0:00:35] OK} 32. Qxd5 {[%emt 0:00:03] OK} Rcc8 {[%emt 0:00:34][%cal Ra8a5] [#] OK} (32... Rxa5 $2 {te hebberig.} 33. Qd8+ Bf8 34. Qxc7 $18) (32... Qxa5 33. Qxa5 Rxa5 34. Bb6 $18) 33. Bb6 {[%emt 0:00:40] OK} h5 {[%emt 0:00:31] [#] Onnauwkeurig} ({Maar niet} 33... c3 $2 34. Rxc3 e4 35. Rc7 $18 (35. Qxe4 $2 {verliest.} Qxd1 36. Rxc8+ Rxc8 $19) (35. Rxc8+ Rxc8 36. fxe4 Re8 $18)) {Wit zou moeten spelen} 34. Ra1 {[%emt 0:01:00] Wit is actiever. Fout (1.0)} (34. Rd2 $1 $16 {[%cal Rd2c2]}) 34... Qb3 $14 {[%emt 0:00:24][%cal Oe5e4] OK} 35. Rab1 {[%emt 0:00:31] Onnauwkeurig} Qc2 {[%emt 0:00:19]} 36. Qd2 {[%emt 0:00:24] OK} Qa4 {[%emt 0:00:29] Wit moet nu ...c3 voorkomen. OK} 37. Qd7 {[%emt 0:00:32]} Qc2 {[%emt 0:00:02] OK} 38. Qd2 {[%emt 0:00:10] OK} Qa4 {[%emt 0:00:16] Dreigt te winnen met ...c3. OK} 39. Rb4 {[%emt 0:00:56] OK} Qa3 {[%emt 0:01:10] En nu zou ...c3 winnen. OK} 40. Qb2 $36 {[%emt 0:00:26][%mdl 2048] Wit vecht voor een voordeel. OK} Qxb2 {[%emt 0:00:35] OK} 41. Rxb2 {[%emt 0:30:02]} e4 $1 {[%emt 0:01:16] Sterk} 42. Rc2 {[%emt 0:00:00] OK} exf3+ {[%emt 0:03:46] OK} 43. Kxf3 {[%emt 0:00:00]} Bf6 {[%emt 0:06:57]} 44. Rd5 {[%emt 0:00:00]} Rc6 {[%emt 0:04:50] Houdt de partij in balans. Fout (1.2)} (44... c3 $11) 45. e4 $16 {[%emt 0:00:00] Zwart is aan het verliezen. Beste (Gemakkelijk)} Ba1 {[%emt 0:09:34]} 46. Ke3 {[%emt 0:00:00]} c3 {[%emt 0:03:13] Fout (0.6)} (46... Rac8 $16) 47. Kd3 {[%emt 0:00:19]} Bb2 {[%emt 0:00:39]} 48. Bd4 {[%emt 0:00:52]} Rca6 {[%emt 0:00:25] was nodig. Fout (0.9)} (48... Kf8 $16 49. Bxc3 Bxc3) 49. Bb6 $18 {[%emt 0:00:14] Beste (Gemakkelijk)} ({Zwakker is} 49. Bxc3 Bxc3 50. Rxc3 Rxa5 $11) 49... Rb8 {[%emt 0:03:36]} 50. Bd4 {[%emt 0:01:15] Onnauwkeurig} Rba8 {[%emt 0:00:21] is een betere verdediging. Fout (0.5)} (50... Kf8 $16 51. Bxc3 Bxc3 52. Rxc3 (52. Kxc3 Rc6+ 53. Kd2 Rf6 $16) 52... Rb1) 51. Bb6 {[%emt 0:00:20] Beste (Gemakkelijk)} (51. Bxc3 Bxc3 52. Rxc3 Rxa5 $11) 51... Rb8 {[%emt 0:00:07]} 52. Rf2 {[%emt 0:02:41] OK} Raa8 $2 {[%emt 0:01:34] was hoogst noodzakelijk. Fout (1.6)} (52... Raxb6 53. axb6 Rxb6 54. Rd8+ Kg7) 53. Rd7 {[%emt 0:00:37] OK} Rf8 {[%emt 0:00:13] OK} 54. Kc2 {[%emt 0:00:37] OK} Rac8 {[%emt 0:00:33] Wellicht de voorkeur. Fout (2.0)} (54... Ba3 55. Kxc3 Rfe8) 55. a6 {[%emt 0:00:34] OK} Rc6 {[%emt 0:00:15]} 56. Rb7 {[%emt 0:00:17]} Ra8 {[%emt 0:00:15]} 57. Bd4 {[%emt 0:00:41][%cal Rf2f7]} (57. Rfxf7 Rxb6 58. a7 Ba3 $14) 57... Rd6 {[%emt 0:01:03]} 58. Bc5 {[%emt 0:00:35][%cal Rf2f7]} (58. Bxc3 Bxc3 59. Kxc3 Rc8+ 60. Kb3 Rxa6 $14) 58... Rc6 {[%emt 0:00:24]} 59. Be3 {[%emt 0:00:29][%cal Rf2f7] OK} Rcxa6 {[%emt 0:00:45] Onnauwkeurig} 60. Rfxf7 {[%emt 0:00:15] OK. Wit zet mat.} g5 {[%emt 0:00:23]} 61. Rg7+ {[%emt 0:00:08]} ({Minder sterk is} 61. Bxg5 Rg6 $16) 61... Kh8 {[%emt 0:00:32]} 62. Rh7+ {[%emt 0:00:09]} Kg8 {[%emt 0:00:01]} 63. Rbg7+ {[%emt 0:00:05]} Kf8 {[%emt 0:00:04]} 64. Bc5+ {[%emt 0:00:54] Blunder waarde: Wit=0.23 (precies) /Zwart=0.43.  Fout:        	Wit=4      	Zwart=10     Onnauwkeurig:    	Wit=2      	Zwart=4      OK:         	Wit=22     	Zwart=15     Beste:        	Wit=6      	Zwart=2      Sterk:        	---       	Zwart=2} 1-0